bitfinex-derivatives/quotes_BTCF0:USTF0_20241208
["timestamp","ask_amount","ask_price","bid_price","bid_amount"]
[1733672579441,0.3618,99737.0,99736.0,0.17954928]
[1733672579640,0.3638,99737.0,99736.0,0.17954928]
[1733672582039,0.3618,99737.0,99736.0,0.17954928]
[1733672582435,0.3618,99737.0,99736.0,0.27574928]
[1733672583146,0.3618,99737.0,99736.0,0.26133787]
[1733672583942,0.3618,99737.0,99736.0,0.26635038]
[1733672584141,0.3618,99737.0,99736.0,0.27574884]
[1733672584550,0.3618,99737.0,99736.0,0.17954884]
[1733672587251,0.001,99737.0,99736.0,0.17954884]
[1733672587853,0.1201207,99742.0,99736.0,0.17954884]
[1733672588047,0.1201207,99743.0,99742.0,0.045086]
[1733672588345,0.1201207,99743.0,99742.0,0.28857844]
[1733672588648,0.1201207,99743.0,99742.0,0.4001201]
[1733672589150,0.003,99743.0,99742.0,0.15976029]
[1733672589342,0.1231207,99743.0,99742.0,0.7609201]
[1733672589539,0.003,99743.0,99742.0,0.7609201]
[1733672589743,0.11290808,99746.0,99742.0,0.47547429]
[1733672589944,0.15015987,99758.0,99756.0,0.045079]
[1733672590148,0.3608,99760.0,99756.0,0.0594891]
[1733672590344,0.15015987,99762.0,99756.0,0.23974136]
[1733672590641,0.15015987,99762.0,99756.0,0.33994874]
[1733672590953,0.15015987,99761.0,99756.0,0.33994874]
[1733672591148,0.15015987,99765.0,99756.0,0.33987918]
[1733672591341,0.15015987,99767.0,99756.0,0.14533716]
[1733672591543,0.15015987,99771.0,99756.0,0.15974406]
[1733672591739,0.15015987,99771.0,99756.0,0.16074406]
[1733672592047,0.00850415,99757.0,99756.0,0.16074406]
[1733672592243,0.15015987,99773.0,99756.0,0.40077602]
[1733672592450,0.45540341,99775.0,99774.0,0.045071]
[1733672592650,0.45540341,99775.0,99774.0,0.0594779]
[1733672593043,0.45540341,99775.0,99774.0,0.1597039]
[1733672594150,0.36090341,99775.0,99774.0,0.1597039]
[1733672594751,0.36090341,99775.0,99774.0,0.16483228]
[1733672594947,0.36390341,99775.0,99774.0,0.18023883]
[1733672596852,0.36390341,99775.0,99774.0,0.17710697]
[1733672597059,0.36390341,99775.0,99774.0,0.1802389]
[1733672601553,0.36390341,99775.0,99774.0,0.17397515]
[1733672602063,0.36390341,99775.0,99774.0,0.17397518]
[1733672603655,0.36390341,99775.0,99774.0,0.19451611]
[1733672605360,0.40897441,99775.0,99774.0,0.07374918]
[1733672606465,0.40897441,99775.0,99774.0,0.02867818]
[1733672607763,0.045078,99760.0,99750.0,0.27650167]
[1733672608062,0.41897441,99775.0,99755.0,0.145306]
[1733672608063,0.40588,99756.0,99755.0,0.145306]
[1733672609364,0.04508,99755.0,99754.0,0.00150365]
[1733672609558,0.3608,99756.0,99742.0,0.00036058]
[1733672609559,0.045085,99743.0,99742.0,0.00036058]
[1733672609758,0.3608,99743.0,99740.0,0.045086]
[1733672609962,0.045086,99741.0,99740.0,0.045086]
[1733672610165,0.3608,99743.0,99735.0,0.00036058]
[1733672610367,0.04509,99735.0,99734.0,0.045089]
[1733672610562,0.40589,99735.0,99734.0,0.045089]
[1733672611071,0.40589,99735.0,99734.0,0.05135534]
[1733672611657,0.40589,99735.0,99734.0,0.05235534]
[1733672612066,0.40589,99735.0,99734.0,0.002]
[1733672613164,0.40589,99735.0,99734.0,0.001]
[1733672618972,0.3608,99735.0,99734.0,0.001]
[1733672619174,0.3608,99735.0,99734.0,0.00601317]
[1733672619571,0.3608,99735.0,99734.0,0.11254546]
[1733672619767,0.3608,99735.0,99734.0,0.20287846]
[1733672619972,0.3608,99743.0,99734.0,0.20287846]
[1733672620176,0.15015987,99760.0,99734.0,0.20287846]
[1733672620177,0.3608,99754.0,99735.0,0.10589909]
[1733672620369,0.3608,99754.0,99753.0,0.045081]
[1733672620572,0.3608,99754.0,99753.0,0.0532256]
[1733672621271,0.3608,99754.0,99753.0,0.05322556]
[1733672622384,0.3608,99754.0,99753.0,0.05009306]
[1733672622385,0.3618,99754.0,99753.0,0.05009306]
[1733672622585,0.3618,99754.0,99753.0,0.07107346]
[1733672622773,0.3618,99754.0,99753.0,0.07608558]
[1733672622970,0.3638,99754.0,99753.0,0.07608558]
[1733672623268,0.40888,99754.0,99753.0,0.01315675]
[1733672623685,0.40888,99754.0,99753.0,0.00814463]
[1733672624281,0.40888,99754.0,99753.0,0.00313257]
[1733672626181,0.40688,99754.0,99753.0,0.00313257]
[1733672626483,0.40988,99754.0,99753.0,0.00313257]
[1733672627275,0.40988,99754.0,99753.0,0.04821357]
[1733672628380,0.3648,99754.0,99753.0,0.15347305]
[1733672628585,0.3648,99754.0,99753.0,0.15973831]
[1733672628586,0.3638,99754.0,99753.0,0.15973831]
[1733672629490,0.3638,99754.0,99753.0,0.15033973]
[1733672629680,0.3618,99754.0,99753.0,0.15973654]
[1733672629881,0.3638,99754.0,99753.0,0.15973654]
[1733672634088,0.3638,99754.0,99753.0,0.1453281]
[1733672634288,0.3638,99754.0,99753.0,0.15973659]
[1733672635987,0.3638,99754.0,99753.0,0.16009708]
[1733672636297,0.3638,99754.0,99753.0,0.16009718]
[1733672636889,0.3638,99754.0,99753.0,0.15973656]
[1733672637394,0.3638,99754.0,99753.0,0.16009718]
[1733672637694,0.3638,99754.0,99753.0,0.15973656]
[1733672638195,0.3638,99754.0,99753.0,0.25163656]
[1733672639598,0.3638,99754.0,99753.0,0.2372281]
[1733672639899,0.3638,99754.0,99753.0,0.25163684]
[1733672640294,0.3638,99754.0,99753.0,0.24537217]
[1733672641502,0.3638,99754.0,99753.0,0.2372281]
[1733672641690,0.3638,99754.0,99753.0,0.24223983]
[1733672641888,0.3638,99754.0,99753.0,0.24537216]
[1733672644095,0.3638,99754.0,99753.0,0.41725162]
[1733672644293,0.003,99754.0,99753.0,0.24223972]
[1733672644604,0.23755987,99778.0,99774.0,0.045071]
[1733672644795,0.0874,99778.0,99774.0,0.045071]
[1733672645191,0.0874,99778.0,99774.0,0.14842926]
[1733672645405,0.04517441,99775.0,99774.0,0.15344088]
[1733672645706,0.04817441,99775.0,99774.0,0.00814388]
[1733672646900,0.04817441,99775.0,99774.0,0.05421488]
[1733672647091,0.04817441,99775.0,99774.0,0.046071]
[1733672647293,0.04817441,99775.0,99774.0,0.05421423]
[1733672647792,0.04817441,99775.0,99774.0,0.05922511]
[1733672647996,0.04817441,99775.0,99774.0,0.05734569]
[1733672648502,0.04817441,99775.0,99774.0,0.02994131]
[1733672649100,0.04817441,99775.0,99774.0,0.07501231]
[1733672650602,0.04817441,99775.0,99774.0,0.01227469]
[1733672650805,0.09688938,99775.0,99774.0,0.01227469]
[1733672651305,0.09688938,99775.0,99774.0,0.01227566]
[1733672652608,0.10688938,99775.0,99774.0,0.01227566]
[1733672653102,0.09688938,99775.0,99774.0,0.01227566]
[1733672653302,0.09688938,99775.0,99774.0,0.05734666]
[1733672653495,0.04817441,99775.0,99774.0,0.05734666]
[1733672653700,0.04817441,99775.0,99774.0,0.01227566]
[1733672654100,0.09688855,99775.0,99774.0,0.01227566]
[1733672654703,0.09688855,99775.0,99774.0,0.01227532]
[1733672655206,0.09688855,99775.0,99774.0,0.00914331]
[1733672657809,0.28684979,99775.0,99774.0,0.00914331]
[1733672658199,0.10688855,99775.0,99774.0,0.001]
[1733672658399,0.10688855,99775.0,99774.0,0.00914349]
[1733672658603,0.10688978,99775.0,99774.0,0.00914349]
[1733672658804,0.23833324,99775.0,99774.0,0.00914349]
[1733672659019,0.28704861,99775.0,99774.0,0.00914349]
[1733672659718,0.10688978,99775.0,99774.0,0.00914349]
[1733672660908,0.25426922,99775.0,99774.0,0.00914349]
[1733672661120,0.25426922,99775.0,99774.0,0.0004444]
[1733672661412,0.26849779,99775.0,99774.0,0.0004444]
[1733672661612,0.4645926,99775.0,99774.0,0.0004444]
[1733672661819,0.25426922,99775.0,99774.0,0.0004444]
[1733672663325,0.25372611,99775.0,99774.0,0.0004444]
[1733672665328,0.045075,99766.0,99765.0,0.01612383]
[1733672665621,0.3608,99766.0,99765.0,0.045075]
[1733672665823,0.3608,99766.0,99765.0,0.05749922]
[1733672666026,0.3608,99766.0,99765.0,0.15808655]
[1733672666211,0.3608,99766.0,99765.0,0.15772522]
[1733672666817,0.3618,99766.0,99765.0,0.15772522]
[1733672667018,0.3618,99766.0,99765.0,0.15808652]
[1733672667216,0.3628,99766.0,99765.0,0.15908652]
[1733672668118,0.407875,99766.0,99765.0,0.15908652]
[1733672668415,0.45659149,99766.0,99765.0,0.001]
[1733672668620,0.45659149,99766.0,99765.0,0.046075]
[1733672670615,0.3628,99766.0,99765.0,0.05849959]
[1733672671228,0.3628,99766.0,99765.0,0.06351105]
[1733672671720,0.3628,99766.0,99765.0,0.06387235]
[1733672672118,0.3628,99766.0,99765.0,0.06351103]
[1733672672328,0.407875,99766.0,99765.0,0.06351103]
[1733672673338,0.407875,99766.0,99765.0,0.06664318]
[1733672674144,0.407875,99766.0,99765.0,0.06664194]
[1733672674329,0.3628,99766.0,99765.0,0.06664194]
[1733672674726,0.3628,99766.0,99765.0,0.24680734]
[1733672675742,0.3628,99766.0,99765.0,0.24680714]
[1733672676538,0.3628,99766.0,99765.0,0.06664174]
[1733672676735,0.3628,99766.0,99765.0,0.16687679]
[1733672677447,0.3628,99766.0,99765.0,0.15445344]
[1733672677737,0.48292363,99766.0,99765.0,0.15445344]
[1733672678540,0.3628,99766.0,99765.0,0.15445344]
[1733672678738,0.002,99766.0,99765.0,0.15445344]
[1733672678936,0.002,99766.0,99765.0,0.4009377]
[1733672679137,0.12012363,99769.0,99768.0,0.045074]
[1733672679438,0.15013783,99773.0,99772.0,0.045072]
[1733672679846,0.15013783,99774.0,99773.0,0.045072]
[1733672680038,0.04517441,99775.0,99774.0,0.045071]
[1733672680233,0.09388668,99775.0,99774.0,0.05008198]
[1733672680441,0.04881568,99775.0,99774.0,0.05321384]
[1733672680642,0.04881568,99775.0,99774.0,0.05947755]
[1733672681038,0.00010341,99775.0,99774.0,0.05947755]
[1733672681239,0.15024057,99775.0,99774.0,0.05947755]
[1733672681440,0.00010341,99775.0,99774.0,0.05947755]
[1733672681632,0.00010341,99775.0,99774.0,0.06047755]
[1733672681633,0.00110341,99775.0,99774.0,0.06047755]
[1733672681837,0.0508148,99775.0,99774.0,0.06047755]
[1733672682333,0.00210341,99775.0,99774.0,0.06047755]
[1733672682538,0.15223128,99775.0,99774.0,0.06047755]
[1733672682840,0.00210341,99775.0,99774.0,0.06047755]
[1733672683035,0.15223128,99775.0,99774.0,0.06047755]
[1733672683442,0.00210341,99775.0,99774.0,0.06047755]
[1733672683941,0.15223128,99775.0,99774.0,0.06047755]
[1733672684448,0.15223128,99775.0,99774.0,0.07700967]
[1733672685347,0.15223128,99775.0,99774.0,0.0773711]
[1733672686040,0.15223128,99775.0,99774.0,0.165961]
[1733672686352,0.15223128,99775.0,99774.0,0.17759722]
[1733672687836,0.15223128,99775.0,99774.0,0.17723579]
[1733672688348,0.00210341,99775.0,99774.0,0.17723579]
[1733672689142,0.00210341,99775.0,99774.0,0.1775972]
[1733672689335,0.00210341,99775.0,99774.0,0.17723579]
[1733672689537,0.00210341,99775.0,99774.0,0.17723489]
[1733672689736,0.00210341,99775.0,99774.0,0.41745542]
[1733672690143,0.00210341,99775.0,99774.0,0.17723489]
[1733672693045,0.12006114,99782.0,99781.0,0.045068]
[1733672693241,0.12006114,99782.0,99781.0,0.05320985]
[1733672693543,0.12006114,99782.0,99781.0,0.05947281]
[1733672693744,0.12006114,99782.0,99781.0,0.15969881]
[1733672693947,0.12006114,99784.0,99781.0,0.11472149]
[1733672694138,0.18166889,99796.0,99786.0,0.045066]
[1733672694139,0.12006114,99787.0,99786.0,0.045066]
[1733672694343,0.12006114,99787.0,99786.0,0.05947081]
[1733672694739,0.12006114,99787.0,99786.0,0.15968978]
[1733672695144,0.12006114,99788.0,99787.0,0.045065]
[1733672695350,0.12006114,99788.0,99787.0,0.05983102]
[1733672695650,0.12006114,99788.0,99787.0,0.05983103]
[1733672695959,0.12006114,99788.0,99787.0,0.15968376]
[1733672696452,0.12006114,99788.0,99787.0,0.16004451]
[1733672697040,0.12006114,99788.0,99787.0,0.16104451]
[1733672697241,0.15012787,99794.0,99788.0,0.045065]
[1733672697242,0.48086114,99789.0,99788.0,0.045065]
[1733672697540,0.48086114,99789.0,99788.0,0.05946937]
[1733672697945,0.48086114,99789.0,99788.0,0.15968232]
[1733672698344,0.48086114,99789.0,99788.0,0.14527795]
[1733672698545,0.48086114,99789.0,99788.0,0.1596822]
[1733672699749,0.48086114,99789.0,99788.0,0.1606822]
[1733672702051,0.405864,99789.0,99788.0,0.24049175]
[1733672702259,0.405864,99789.0,99788.0,0.06046925]
[1733672705555,0.494364,99789.0,99788.0,0.06046925]
[1733672706451,0.494364,99789.0,99788.0,0.05420653]
[1733672706763,0.494364,99789.0,99788.0,0.05107545]
[1733672706952,0.494364,99789.0,99788.0,0.05420698]
[1733672707152,0.494364,99789.0,99788.0,0.06986465]
[1733672707651,0.494364,99789.0,99788.0,0.06047005]
[1733672707853,0.494364,99789.0,99788.0,0.06986452]
[1733672708367,0.4493,99789.0,99788.0,0.06986452]
[1733672709050,0.3608,99789.0,99788.0,0.17007646]
[1733672709757,0.3608,99789.0,99788.0,0.35009896]
[1733672709960,0.3608,99789.0,99788.0,0.17007646]
[1733672710461,0.4808009,99789.0,99788.0,0.17007646]
[1733672710762,0.3608,99789.0,99788.0,0.17007646]
[1733672711651,0.3608,99789.0,99788.0,0.26677646]
[1733672711861,0.3608,99789.0,99788.0,0.26677539]
[1733672712058,0.3608,99789.0,99788.0,0.2667751]
[1733672713560,0.51144788,99799.0,99788.0,0.2667751]
[1733672713561,0.00052001,99799.0,99792.0,0.045063]
[1733672713765,0.15012787,99800.0,99792.0,0.045063]
[1733672713766,0.15012787,99810.0,99806.0,0.045057]
[1733672713964,0.24142787,99812.0,99806.0,0.05946056]
[1733672714159,0.15012787,99811.0,99806.0,0.1596725]
[1733672714360,0.15012787,99811.0,99806.0,0.16003373]
[1733672714564,0.24142787,99812.0,99806.0,0.16003162]
[1733672715259,0.3608,99814.0,99806.0,0.16003162]
[1733672715260,0.51092787,99814.0,99806.0,0.15967039]
[1733672715460,0.36132001,99814.0,99806.0,0.15967039]
[1733672715652,0.3608,99814.0,99806.0,0.17566984]
[1733672716355,0.3608,99814.0,99806.0,0.17666984]
[1733672717365,0.1801654,99823.0,99806.0,0.17666984]
[1733672717366,0.00508478,99823.0,99822.0,0.04505]
[1733672717663,0.3608,99826.0,99825.0,0.045048]
[1733672717856,0.3608,99826.0,99825.0,0.05318795]
[1733672718056,0.3608,99826.0,99825.0,0.06257831]
[1733672718265,0.3608,99826.0,99825.0,0.05944756]
[1733672718669,0.3608,99826.0,99825.0,0.15962236]
[1733672719257,0.405848,99826.0,99825.0,0.01439956]
[1733672719568,0.405848,99826.0,99806.0,0.01599945]
[1733672719569,0.045056,99807.0,99806.0,0.01599945]
[1733672719864,0.045056,99807.0,99790.0,0.75755382]
[1733672719865,0.04506,99801.0,99797.0,0.01970269]
[1733672720064,0.04506,99801.0,99800.0,0.04506]
[1733672720267,0.0884,99806.0,99794.0,0.17986541]
[1733672720467,0.045062,99797.0,99796.0,0.045061]
[1733672723366,0.047062,99797.0,99796.0,0.045061]
[1733672725675,0.045062,99797.0,99796.0,0.045061]
[1733672725970,0.047062,99797.0,99796.0,0.045061]
[1733672726560,0.3608,99798.0,99797.0,0.045061]
[1733672727368,0.3608,99798.0,99797.0,0.1515273]
[1733672728966,0.3628,99798.0,99797.0,0.1515273]
[1733672729163,0.3628,99798.0,99797.0,0.14526491]
[1733672729366,0.3608,99820.0,99797.0,0.11147599]
[1733672729571,0.3608,99820.0,99819.0,0.045051]
[1733672729775,0.405851,99820.0,99819.0,0.05006069]
[1733672730271,0.405851,99820.0,99819.0,0.00500969]
[1733672730479,0.46654534,99820.0,99819.0,0.00500969]
[1733672730682,0.417851,99820.0,99819.0,0.00500969]
[1733672730868,0.42149505,99820.0,99800.0,0.09647815]
[1733672731064,0.045059,99804.0,99803.0,0.045058]
[1733672731563,0.3608,99811.0,99794.0,0.17975996]
[1733672731767,0.3608,99811.0,99790.0,0.3608]
[1733672731768,0.4558,99803.0,99790.0,0.3608]
[1733672731967,0.045066,99789.0,99788.0,0.045065]
[1733672732168,0.3608,99795.0,99785.0,0.045066]
[1733672732169,0.045067,99786.0,99785.0,0.045066]
[1733672732972,0.045067,99786.0,99785.0,0.05633836]
[1733672733169,0.045067,99786.0,99785.0,0.01127236]
[1733672733373,0.045067,99786.0,99785.0,0.01440351]
[1733672733767,0.045067,99786.0,99785.0,0.00814108]
[1733672734176,0.045067,99786.0,99781.0,9.068e-05]
[1733672734177,0.175067,99786.0,99781.0,9.068e-05]
[1733672734379,0.175067,99786.0,99771.0,0.00036114]
[1733672734380,0.045068,99781.0,99771.0,0.00036114]
[1733672734676,0.045075,99766.0,99765.0,0.00036114]
[1733672734978,0.045081,99754.0,99752.0,0.045081]
[1733672735179,0.405881,99754.0,99753.0,0.00626515]
[1733672735376,0.405881,99754.0,99753.0,0.00633074]
[1733672736775,0.405881,99754.0,99753.0,0.00833074]
[1733672737266,0.405881,99754.0,99753.0,0.00206559]
[1733672746178,0.405881,99754.0,99753.0,0.00519836]
[1733672747673,0.415881,99754.0,99753.0,0.00519836]
[1733672748287,0.405881,99754.0,99753.0,0.00519836]
[1733672749385,0.405881,99754.0,99753.0,0.00519835]
[1733672750996,0.405881,99754.0,99753.0,0.00519836]
[1733672752291,0.405881,99754.0,99753.0,0.01021088]
[1733672752682,0.415881,99754.0,99753.0,0.01021088]
[1733672755580,0.415881,99754.0,99753.0,0.00206559]
[1733672755781,0.415881,99754.0,99753.0,0.01021095]
[1733672756385,0.415881,99754.0,99753.0,0.00707812]
[1733672756691,0.415881,99754.0,99753.0,0.01021095]
[1733672756984,0.045082,99751.0,99730.0,0.01]
[1733672757178,0.045082,99751.0,99707.0,0.405902]
[1733672757179,0.405891,99731.0,99722.0,0.045095]
[1733672757377,0.405891,99731.0,99723.0,0.01863147]
[1733672757378,0.045094,99724.0,99723.0,0.01863147]
[1733672757575,0.045094,99724.0,99723.0,0.00626688]
[1733672758977,0.045094,99724.0,99723.0,0.00826688]
[1733672760090,0.045094,99724.0,99723.0,0.002]
[1733672760279,0.065094,99724.0,99723.0,0.002]
[1733672760786,0.065094,99724.0,99723.0,0.00826727]
[1733672760787,0.045094,99724.0,99723.0,0.00826727]
[1733672760988,0.045094,99724.0,99723.0,0.01326727]
[1733672763280,0.045094,99724.0,99723.0,0.007]
[1733672763492,0.055094,99724.0,99723.0,0.01326788]
[1733672764195,0.055094,99724.0,99723.0,0.007]
[1733672764381,0.055094,99724.0,99723.0,0.01326823]
[1733672765580,0.055094,99724.0,99723.0,0.00926823]
[1733672765890,0.055094,99724.0,99723.0,0.00726823]
[1733672766687,0.055094,99724.0,99723.0,0.001]
[1733672766884,0.055094,99724.0,99723.0,0.01228282]
[1733672767987,0.055094,99724.0,99723.0,8.2e-07]
[1733672768579,0.68454274,99724.0,99723.0,8.2e-07]
[1733672768779,0.68454274,99724.0,99723.0,0.00313437]
[1733672768994,0.045101,99708.0,99707.0,0.00036029]
[1733672769188,0.045103,99704.0,99703.0,0.00036029]
[1733672769486,0.055103,99704.0,99703.0,0.00036029]
[1733672770187,0.055103,99704.0,99698.0,0.00036029]
[1733672770492,0.045104,99701.0,99693.0,0.01483195]
[1733672771387,0.045104,99701.0,99697.0,0.00036035]
[1733672771786,0.045104,99701.0,99700.0,0.114]
[1733672774396,0.045104,99701.0,99700.0,0.11436014]
[1733672774587,0.045104,99701.0,99700.0,0.114]
[1733672775190,0.045104,99701.0,99700.0,0.11435999]
[1733672775693,0.045104,99701.0,99700.0,0.114]
[1733672775900,0.045104,99701.0,99700.0,0.11436021]
[1733672776092,0.155104,99701.0,99700.0,0.12062924]
[1733672776294,0.15517962,99701.0,99700.0,0.12026903]
[1733672777400,0.045109,99691.0,99690.0,0.00036021]
[1733672777598,0.415909,99691.0,99690.0,0.00036021]
[1733672778002,0.04511,99689.0,99688.0,0.00036021]
[1733672778198,0.04511,99689.0,99686.0,5.152e-05]
[1733672778199,0.4308,99689.0,99686.0,5.152e-05]
[1733672778497,0.045111,99687.0,99686.0,5.152e-05]
[1733672778694,0.075111,99687.0,99686.0,5.152e-05]
[1733672778895,0.075111,99687.0,99686.0,0.00506769]
[1733672779599,0.075111,99687.0,99686.0,1e-08]
[1733672780789,0.075111,99687.0,99686.0,0.00400001]
[1733672780790,0.045111,99687.0,99686.0,0.00400001]
[1733672781009,0.045111,99687.0,99686.0,0.01027002]
[1733672781397,0.045111,99687.0,99686.0,0.05538102]
[1733672782503,0.045111,99687.0,99686.0,0.06958162]
[1733672785305,0.045111,99687.0,99686.0,0.07585124]
[1733672787104,0.045111,99687.0,99686.0,0.07271623]
[1733672787599,0.045111,99687.0,99686.0,0.07271601]
[1733672787991,0.3608,99689.0,99688.0,0.04511]
[1733672788193,0.3608,99689.0,99688.0,0.05137961]
[1733672788401,0.045107,99695.0,99694.0,0.045108]
[1733672788605,0.045107,99695.0,99694.0,0.04824237]
[1733672788808,0.045107,99695.0,99694.0,0.05451112]
[1733672789600,0.045107,99695.0,99694.0,0.05952619]
[1733672790301,0.045107,99695.0,99694.0,0.05639179]
[1733672790603,0.045107,99695.0,99694.0,0.05952624]
[1733672791100,0.045107,99695.0,99694.0,0.0595264]
[1733672791503,0.13476793,99695.0,99694.0,0.0595264]
[1733672791700,0.045107,99695.0,99694.0,0.0595264]
[1733672793503,0.045107,99695.0,99694.0,0.045108]
[1733672793701,0.045107,99695.0,99694.0,0.05952647]
[1733672794802,0.16515544,99695.0,99694.0,0.06152647]
[1733672795200,0.16515544,99695.0,99694.0,0.06052647]
[1733672795401,0.045107,99695.0,99694.0,0.06052647]
[1733672795602,0.16517564,99695.0,99694.0,0.06052647]
[1733672795801,0.3608,99699.0,99694.0,0.06052547]
[1733672795802,0.12006863,99697.0,99694.0,0.06052547]
[1733672796012,0.12006863,99698.0,99697.0,0.045106]
[1733672796209,0.3608,99699.0,99698.0,0.045106]
[1733672796404,0.48086863,99699.0,99698.0,0.05952447]
[1733672796605,0.3608,99699.0,99698.0,0.05952447]
[1733672797414,7.562e-05,99701.0,99698.0,0.01441847]
[1733672797610,7.562e-05,99701.0,99700.0,0.045105]
[1733672797803,7.562e-05,99701.0,99700.0,0.05952347]
[1733672798000,7.562e-05,99701.0,99700.0,0.07195321]
[1733672798206,7.562e-05,99701.0,99700.0,0.05952347]
[1733672798512,7.562e-05,99701.0,99700.0,0.07195334]
[1733672798710,0.09013664,99701.0,99700.0,0.07195334]
[1733672799606,0.09113664,99701.0,99700.0,0.07795334]
[1733672799809,0.09213664,99701.0,99700.0,0.07795334]
[1733672800312,0.00207562,99701.0,99700.0,0.07795334]
[1733672800507,0.09212267,99701.0,99700.0,0.07795334]
[1733672801006,0.00207562,99701.0,99700.0,0.07795334]
[1733672801213,0.00107562,99701.0,99700.0,0.07195334]
[1733672801413,0.09112114,99701.0,99700.0,0.07695334]
[1733672801909,0.04617962,99701.0,99700.0,0.06552347]
[1733672802106,0.17524825,99701.0,99700.0,0.02341847]
[1733672802308,0.05517962,99701.0,99700.0,0.02341847]
[1733672802609,0.05517962,99701.0,99700.0,0.02278017]
[1733672803019,0.33587962,99701.0,99700.0,0.01941847]
[1733672803307,0.045112,99683.0,99682.0,0.17975996]
[1733672803522,0.49086571,99683.0,99674.0,0.22487596]
[1733672803704,0.0900539,99677.0,99674.0,0.045116]
[1733672803908,0.0900539,99679.0,99675.0,0.17975996]
[1733672804210,0.0900539,99679.0,99674.0,0.04547792]
[1733672804211,0.045116,99675.0,99674.0,0.01370184]
[1733672804403,0.045117,99674.0,99673.0,0.00036192]
[1733672804810,0.12006571,99677.0,99672.0,0.00072369]
[1733672805006,0.045117,99673.0,99672.0,0.00072369]
[1733672805207,0.045117,99673.0,99672.0,0.0131514]
[1733672805517,0.13515777,99673.0,99672.0,0.01242771]
[1733672805901,0.13515777,99673.0,99672.0,0.01278948]
[1733672806308,0.13514348,99673.0,99672.0,0.01642771]
[1733672807809,0.13614348,99673.0,99672.0,0.02342771]
[1733672809607,0.056117,99673.0,99672.0,0.02342771]
[1733672810212,0.056117,99673.0,99672.0,0.011]
[1733672810415,0.046117,99673.0,99672.0,0.011]
[1733672810619,0.1361256,99673.0,99672.0,0.011]
[1733672811420,0.13611722,99673.0,99672.0,0.01727023]
[1733672811712,0.001,99673.0,99672.0,0.06238723]
[1733672812615,0.001,99673.0,99672.0,0.056117]
[1733672812813,0.001,99673.0,99672.0,0.06238733]
[1733672813119,0.001,99673.0,99672.0,0.06740355]
[1733672814021,0.001,99673.0,99672.0,0.07983426]
[1733672814721,0.001,99673.0,99672.0,0.18016283]
[1733672815316,0.001,99673.0,99672.0,0.36119768]
[1733672815917,0.001,99673.0,99672.0,0.36155918]
[1733672816511,0.001,99673.0,99672.0,0.36119768]
[1733672818120,0.001,99673.0,99672.0,0.36155916]
[1733672818619,0.001,99673.0,99672.0,0.35492735]
[1733672818827,0.001,99673.0,99672.0,0.36119665]
[1733672822228,0.001,99673.0,99672.0,0.36120144]
[1733672823230,0.001,99673.0,99672.0,0.5409614]
[1733672823912,0.001,99673.0,99672.0,0.36120144]
[1733672825522,0.001,99673.0,99672.0,0.36120778]
[1733672828924,0.001,99673.0,99672.0,0.33434557]
[1733672829115,0.001,99673.0,99672.0,0.36120985]
[1733672829314,0.001,99673.0,99672.0,0.60143038]
[1733672830331,0.001,99673.0,99672.0,0.36120985]
[1733672832431,0.001,99673.0,99672.0,0.36454898]
[1733672832620,0.001,99673.0,99672.0,0.37896906]
[1733672833547,0.09000022,99680.0,99679.0,0.045114]
[1733672833729,0.12018481,99683.0,99682.0,0.045113]
[1733672833922,0.12018481,99683.0,99682.0,0.07197728]
[1733672834427,0.12018481,99684.0,99683.0,0.045112]
[1733672834620,0.3608,99685.0,99684.0,0.045112]
[1733672834822,0.3608,99685.0,99684.0,0.07197628]
[1733672835027,0.3608,99685.0,99684.0,0.07199297]
[1733672835624,0.3608,99685.0,99684.0,0.059894]
[1733672836040,0.3608,99685.0,99684.0,0.07599182]
[1733672836926,0.3608,99685.0,99684.0,0.07699182]
[1733672837429,0.48098625,99685.0,99684.0,0.07699182]
[1733672837732,0.48098805,99685.0,99684.0,0.07699182]
[1733672837929,0.3608,99685.0,99684.0,0.07699182]
[1733672838130,0.12018347,99688.0,99685.0,0.045112]
[1733672838437,0.46832001,99700.0,99690.0,0.045109]
[1733672838438,0.12018347,99698.0,99690.0,0.045109]
[1733672838735,0.12018347,99702.0,99700.0,0.045105]
[1733672838921,0.5110356,99708.0,99700.0,0.24908375]
[1733672838922,0.12018347,99703.0,99700.0,0.24908375]
[1733672839121,0.12018347,99703.0,99700.0,0.25221855]
[1733672839327,0.12018347,99704.0,99700.0,0.07198482]
[1733672840040,0.12018347,99705.0,99700.0,0.07234682]
[1733672840222,0.12018347,99706.0,99700.0,0.07234682]
[1733672840422,0.12018347,99707.0,99700.0,0.07198482]
[1733672840734,0.045099,99713.0,99700.0,0.07198482]
[1733672840735,0.12018347,99706.0,99700.0,0.07198482]
[1733672841234,0.001925,99701.0,99700.0,0.43778482]
[1733672841440,0.3608,99728.0,99727.0,0.045093]
[1733672841625,0.1833,99735.0,99727.0,0.045093]
[1733672841626,0.1833,99735.0,99727.0,0.05324348]
[1733672841826,0.2807,99753.0,99730.0,0.3608]
[1733672841827,0.1502356,99741.0,99730.0,0.3608]
[1733672842026,0.2807,99753.0,99730.0,0.3608]
[1733672842027,0.1502356,99745.0,99743.0,0.045085]
[1733672842227,0.4553,99752.0,99744.0,0.00815048]
[1733672842529,0.4553,99752.0,99751.0,0.045082]
[1733672842731,0.4553,99752.0,99751.0,0.0482168]
[1733672843328,0.4553,99752.0,99751.0,0.0031348]
[1733672843525,0.4653,99752.0,99751.0,0.00815048]
[1733672843733,0.045082,99751.0,99744.0,4.972e-05]
[1733672843928,0.3608,99745.0,99744.0,4.972e-05]
[1733672844433,0.3608,99745.0,99744.0,0.00506252]
[1733672844829,0.3608,99745.0,99744.0,4.972e-05]
[1733672845647,0.3688,99745.0,99744.0,4.972e-05]
[1733672847830,0.1502356,99769.0,99756.0,0.045079]
[1733672848029,0.0899,99769.0,99756.0,0.405879]
[1733672848231,0.0899,99769.0,99756.0,0.41089126]
[1733672848533,0.0899,99769.0,99768.0,0.045074]
[1733672848734,0.0899,99769.0,99768.0,0.405874]
[1733672849443,0.0899,99769.0,99768.0,0.4232375]
[1733672849637,0.0899,99769.0,99768.0,0.42323749]
[1733672849942,0.0949,99769.0,99768.0,0.42323749]
[1733672850535,0.1039,99769.0,99768.0,0.42423749]
[1733672850735,0.1039,99769.0,99768.0,0.4373231]
[1733672852048,0.1039,99769.0,99768.0,0.41997139]
[1733672852236,0.1039,99769.0,99768.0,0.07149475]